bitfinex-derivatives/quotes_SOLF0:USTF0_20241231
["timestamp","ask_amount","ask_price","bid_price","bid_amount"]
[1735616989684,10.32208037,189.91,189.85,2.6381]
[1735616990089,10.32208037,189.91,189.86,6.76878772]
[1735616990288,10.32208037,189.91,189.86,2.6381]
[1735616990788,2.6375,189.9,189.86,2.6381]
[1735616991792,2.6375,189.9,189.85,2.6382]
[1735616992392,7.68468037,189.91,189.85,2.6382]
[1735616992393,2.6377,189.89,189.85,2.6382]
[1735616994495,2.6377,189.89,189.83,2.6385]
[1735616994496,2.6378,189.89,189.83,2.6385]
[1735616994697,2.6378,189.89,189.82,7.68468037]
[1735616994898,7.68468037,189.91,189.83,4.12502557]
[1735616995196,2.6376,189.9,189.85,2.6381]
[1735616995387,7.68468037,189.91,189.82,7.68468037]
[1735616995593,7.68468037,189.91,189.83,4.12392675]
[1735616995795,7.68468037,189.91,189.82,7.68468037]
[1735616995996,7.68468037,189.91,189.83,4.12400169]
[1735616996189,7.68468037,189.91,189.82,7.68468037]
[1735616996390,2.6375,189.9,189.85,2.6381]
[1735616996594,7.68468037,189.91,189.82,7.68468037]
[1735616996893,7.68468037,189.91,189.83,4.12302427]
[1735616997087,7.68468037,189.91,189.82,7.68468037]
[1735616997285,7.68468037,189.89,189.82,7.68468037]
[1735616997489,10.70468037,189.89,189.82,7.68468037]
[1735616997994,2.6381,189.87,189.82,10.32328037]
[1735616998492,2.6381,189.87,189.83,2.6385]
[1735616998690,5.6577,189.89,189.82,7.68468037]
[1735616998995,13.34238037,189.89,189.82,7.68468037]
[1735616999492,10.70468037,189.89,189.84,2.6383]
[1735616999693,2.6379,189.88,189.84,2.6383]
[1735617001192,2.6379,189.88,189.83,2.6385]
[1735617001397,2.6382,189.85,189.8,7.68468037]
[1735617001898,2.6382,189.85,189.8,10.32348037]
[1735617002192,2.6384,189.84,189.8,2.6388]
[1735617002397,2.6384,189.84,189.78,10.68678037]
[1735617002891,2.6384,189.84,189.79,2.6389]
[1735617003094,7.68468037,189.85,189.78,7.68468037]
[1735617003300,7.68468037,189.85,189.72,1.5662]
[1735617003301,7.68468037,189.83,189.76,7.68468037]
[1735617003594,2.639,189.8,189.76,7.68468037]
[1735617003788,7.68468037,189.81,189.74,7.68468037]
[1735617004095,3.02,189.84,189.72,9.25088037]
[1735617004096,7.68468037,189.79,189.72,9.25088037]
[1735617004296,2.6392,189.78,189.74,2.6397]
[1735617004591,7.68468037,189.81,189.74,7.68468037]
[1735617005187,7.68468037,189.81,189.72,9.25088037]
[1735617005898,2.6391,189.79,189.74,2.6397]
[1735617006996,2.6389,189.8,189.75,2.6396]
[1735617007198,7.68468037,189.81,189.74,7.68468037]
[1735617007501,7.68468037,189.81,189.76,2.6395]
[1735617007799,2.6388,189.82,189.76,2.6395]
[1735617007800,1.4953,189.87,189.76,7.68468037]
[1735617008094,7.68468037,189.85,189.81,2.6387]
[1735617008298,7.68468037,189.85,189.78,7.68468037]
[1735617008796,10.32298037,189.85,189.8,2.6389]
[1735617011193,7.68468037,189.85,189.78,7.68468037]
[1735617011392,10.32278037,189.87,189.8,7.68468037]
[1735617012391,10.32278037,189.87,189.83,2.6385]
[1735617013801,5.6578,189.88,189.84,2.6383]
[1735617014598,3.02,189.88,189.83,2.6384]
[1735617014898,10.32238037,189.89,189.82,7.68468037]
[1735617015396,10.32238037,189.89,189.84,2.6383]
[1735617015597,2.638,189.87,189.82,7.68468037]
[1735617016301,2.638,189.87,189.83,2.6384]
[1735617016698,7.68468037,189.89,189.82,7.68468037]
[1735617017100,3.02,189.9,189.84,7.68468037]
[1735617017797,5.6576,189.9,189.85,2.6381]
[1735617018101,7.68468037,189.89,189.82,7.68468037]
[1735617018903,7.68468037,189.87,189.8,7.68468037]
[1735617019102,2.6383,189.85,189.8,10.32348037]
[1735617019603,2.6383,189.85,189.8,7.68468037]
[1735617020502,2.6383,189.85,189.81,2.6387]
[1735617021305,2.6381,189.86,189.81,2.6387]
[1735617022007,7.68468037,189.87,189.8,7.68468037]
[1735617022301,10.70468037,189.89,189.82,7.68468037]
[1735617022707,2.6378,189.88,189.84,2.6382]
[1735617023508,2.6381,189.87,189.83,2.6385]
[1735617023706,10.70468037,189.89,189.82,7.68468037]
[1735617024708,7.68468037,189.87,189.8,7.68468037]
[1735617027006,7.68468037,189.87,189.79,4.748]
[1735617027209,7.68468037,189.83,189.75,7.68468037]
[1735617027409,7.68468037,189.83,189.76,4.12240942]
[1735617027602,7.68468037,189.83,189.75,7.68468037]
[1735617027806,7.68468037,189.83,189.76,4.12239594]
[1735617028006,7.68468037,189.83,189.77,2.6393]
[1735617028706,2.6388,189.81,189.76,2.6394]
[1735617029909,2.6388,189.81,189.77,4.12592911]
[1735617030105,2.6388,189.81,189.76,2.6394]
[1735617030306,2.6388,189.81,189.77,6.76522723]
[1735617030506,2.6388,189.81,189.77,2.6393]
[1735617032007,1.4639,189.87,189.75,7.68468037]
[1735617032311,10.70468037,189.86,189.77,7.68468037]
[1735617032611,13.34278037,189.86,189.81,2.6388]
[1735617032809,10.70468037,189.86,189.79,7.68468037]
[1735617033211,2.6383,189.85,189.8,2.6389]
[1735617033710,7.68468037,189.84,189.77,7.68468037]
[1735617033908,7.68468037,189.84,189.78,4.1311402]
[1735617034210,2.6386,189.83,189.77,7.68468037]
[1735617034412,2.6386,189.83,189.78,4.13122884]
[1735617034609,2.6386,189.83,189.79,2.639]
[1735617035212,7.68468037,189.84,189.81,2.6388]
[1735617036809,10.32318037,189.84,189.79,2.639]
[1735617037612,2.6385,189.83,189.79,2.639]
[1735617041512,7.68468037,189.84,189.76,2.6394]
[1735617041708,7.68468037,189.82,189.76,2.6394]
[1735617042211,7.68468037,189.8,189.76,2.6394]
[1735617042912,7.68468037,189.8,189.73,7.68468037]
[1735617043105,2.6391,189.79,189.75,2.6395]
[1735617045613,2.6393,189.77,189.73,10.32448037]
[1735617046004,7.68468037,189.78,189.72,1.5388]
[1735617046216,2.6397,189.75,189.73,4.13350894]
[1735617046410,2.6397,189.75,189.71,10.32478037]
[1735617046903,2.6397,189.75,189.71,2.6401]
[1735617047815,2.6397,189.75,189.69,7.68468037]
[1735617047816,3.02,189.75,189.69,7.68468037]
[1735617048007,3.02,189.75,189.7,4.13090801]
[1735617048206,3.02,189.75,189.69,7.68468037]
[1735617048518,7.68468037,189.74,189.68,2.6406]
[1735617048723,7.68468037,189.74,189.69,4.12906651]
[1735617048922,10.32458037,189.74,189.67,7.68468037]
[1735617049213,10.32458037,189.74,189.69,2.6404]
[1735617049914,3.02,189.75,189.71,7.68468037]
[1735617050814,3.02,189.75,189.72,2.6399]
[1735617054420,3.02,189.75,189.71,7.68468037]
[1735617054614,5.6596,189.75,189.71,7.68468037]
[1735617054811,3.02,189.75,189.71,7.68468037]
[1735617056019,3.02,189.75,189.72,2.6399]
[1735617059026,3.02,189.75,189.71,7.68468037]
[1735617059221,5.6597,189.75,189.71,10.32478037]
[1735617060318,7.68468037,189.79,189.71,7.68468037]
[1735617060518,3.02,189.79,189.73,7.68468037]
[1735617060823,3.02,189.79,189.76,2.6393]
[1735617061518,3.02,189.79,189.75,7.68468037]
[1735617061714,5.6591,189.79,189.75,7.68468037]
[1735617063927,7.68468037,189.83,189.75,7.68468037]
[1735617064231,10.70468037,189.83,189.76,4.12327921]
[1735617064523,2.6388,189.82,189.77,2.6393]
[1735617064725,10.70468037,189.83,189.75,7.68468037]
[1735617065026,7.68468037,189.81,189.73,7.68468037]
[1735617065321,2.6391,189.79,189.74,6.76424224]
[1735617065625,2.6391,189.79,189.73,7.68468037]
[1735617065825,2.6391,189.79,189.74,4.12468524]
[1735617066027,2.6391,189.79,189.73,7.68468037]
[1735617066216,2.6391,189.79,189.74,4.12433748]
[1735617066421,2.6391,189.79,189.75,2.6396]
[1735617067531,2.6391,189.79,189.75,10.32428037]
[1735617067833,10.32348037,189.81,189.77,2.6392]
[1735617068029,2.6388,189.81,189.77,2.6392]
[1735617071332,10.70468037,189.85,189.78,4.12877733]
[1735617071528,3.02,189.85,189.77,7.68468037]
[1735617071729,3.02,189.85,189.78,4.12883261]
[1735617071925,10.70468037,189.86,189.8,2.6388]
[1735617072731,10.32318037,189.84,189.77,7.68468037]
[1735617072929,7.68468037,189.84,189.73,1.511]
[1735617073130,7.68468037,189.84,189.77,7.68468037]
[1735617073434,7.68468037,189.84,189.78,4.12944609]
[1735617073638,7.68468037,189.84,189.77,7.68468037]
[1735617073829,7.68468037,189.84,189.78,4.13049858]
[1735617074030,7.68468037,189.84,189.77,7.68468037]
[1735617074230,7.68468037,189.84,189.78,4.13044178]
[1735617074429,2.6388,189.82,189.78,2.6392]
[1735617076435,2.639,189.8,189.76,7.68468037]
[1735617076637,2.639,189.8,189.75,2.6396]
[1735617076938,2.639,189.8,189.74,7.68468037]
[1735617077142,2.639,189.8,189.75,4.13133894]
[1735617077333,2.6391,189.79,189.74,7.68468037]
[1735617078541,3.02,189.83,189.76,7.68468037]
[1735617078841,3.02,189.83,189.77,4.13204009]
[1735617079035,3.02,189.83,189.76,7.68468037]
[1735617079241,7.68468037,189.82,189.77,4.1316827]
[1735617079437,10.32338037,189.82,189.75,7.68468037]
[1735617079636,10.32338037,189.82,189.76,4.13185248]
[1735617079837,10.32338037,189.82,189.77,4.13185248]
[1735617080038,10.32338037,189.82,189.78,6.77105248]
[1735617080239,10.32338037,189.82,189.78,2.6392]
[1735617082239,2.6387,189.82,189.78,2.6392]
[1735617085041,2.6388,189.81,189.76,2.6393]
[1735617085239,2.6388,189.81,189.74,7.68468037]
[1735617085445,2.6388,189.81,189.75,4.13181351]
[1735617085650,10.32338037,189.82,189.78,2.6391]
[1735617085946,7.68468037,189.82,189.76,7.68468037]
[1735617086142,7.68468037,189.82,189.77,4.13002886]
[1735617086342,7.68468037,189.82,189.78,4.13002886]
[1735617086542,7.68468037,189.82,189.76,7.68468037]
[1735617086847,7.68468037,189.82,189.79,2.639]
[1735617087052,29.30275113,189.88,189.78,7.68468037]
[1735617087239,10.70468037,189.87,189.8,7.68468037]
[1735617087445,10.70468037,189.87,189.81,4.12767789]
[1735617087641,10.70468037,189.87,189.8,7.68468037]
[1735617087846,29.30275113,189.88,189.82,7.68468037]
[1735617088147,29.30275113,189.88,189.84,7.68468037]
[1735617088646,29.30275113,189.88,189.87,2.6379]
[1735617088841,3.02,189.91,189.86,7.68468037]
[1735617089344,29.30275113,189.95,189.88,7.68468037]
[1735617089550,32.32275113,189.95,189.88,7.68468037]
[1735617089751,3.02,189.95,189.88,7.68468037]
[1735617091346,7.68468037,189.94,189.86,7.68468037]
[1735617092453,10.32178037,189.94,189.88,2.6378]
[1735617092954,10.32178037,189.94,189.88,10.32248037]
[1735617093156,5.6568,189.95,189.9,2.6375]
[1735617093748,4.1731,189.97,189.91,2.6374]
[1735617094046,3.04,189.96,189.9,7.68468037]
[1735617094451,3.04,189.96,189.91,2.6373]
[1735617094652,3.04,189.96,189.9,7.68468037]
[1735617095154,7.68468037,189.98,189.9,7.68468037]
[1735617095457,10.72468037,189.98,189.92,7.68468037]
[1735617095852,7.68468037,190.0,189.96,2.6367]
[1735617096161,13.36068037,190.02,189.94,7.68468037]
[1735617096353,13.36068037,190.02,189.96,2.6367]
[1735617098061,2.636,190.01,189.96,2.6367]
[1735617098357,10.72468037,190.02,189.94,7.68468037]
[1735617098554,7.68468037,190.02,189.98,2.6364]
[1735617098858,5.6758,190.03,189.92,4.7059]
[1735617098859,3.04,190.03,189.96,7.68468037]
[1735617099657,10.32028037,190.04,189.96,7.68468037]
[1735617099858,10.32028037,190.04,189.98,2.6364]
[1735617100060,10.32028037,190.04,189.96,7.68468037]
[1735617101058,10.72468037,190.04,189.96,7.68468037]
[1735617101852,10.32068037,190.02,189.97,2.6365]
[1735617102261,7.68468037,190.02,189.94,7.68468037]
[1735617102657,7.68468037,190.0,189.92,4.7059]
[1735617102857,62.80120514,190.06,189.78,5.2783]
[1735617102858,7.68468037,189.98,189.91,7.68468037]
[1735617103058,10.72468037,189.98,189.91,7.68468037]
[1735617103454,2.6366,189.97,189.91,10.32198037]
[1735617103854,2.6366,189.97,189.91,7.68468037]
[1735617104059,2.6366,189.97,189.92,2.6372]
[1735617104861,2.6367,189.96,189.92,2.6372]
[1735617105059,10.72468037,189.98,189.92,2.6372]
[1735617105361,10.72468037,189.98,189.93,2.6371]
[1735617105960,10.72468037,189.98,189.88,3.0308]
[1735617106263,7.68468037,189.96,189.88,10.71548037]
[1735617106464,7.68468037,189.9,189.81,4.0935879]
[1735617106668,3.04,189.89,189.82,7.68468037]
[1735617107060,3.04,189.89,189.84,7.68468037]
[1735617107256,3.04,189.89,189.86,2.6381]
[1735617107460,3.04,189.89,189.84,7.68468037]
[1735617107663,3.04,189.89,189.82,7.68468037]
[1735617107866,7.68468037,189.88,189.82,7.68468037]
[1735617108357,7.68468037,189.88,189.8,1.5927]
[1735617108358,3.04,189.89,189.8,1.5927]
[1735617108765,2.6379,189.87,189.82,2.6386]
[1735617108959,2.6379,189.87,189.8,1.5927]
[1735617110757,3.04,189.87,189.8,1.5927]
[1735617112269,3.04,189.87,189.86,2.6381]
[1735617115165,3.04,189.87,189.84,2.6382]
[1735617115974,3.04,189.86,189.84,2.6382]
[1735617116565,3.04,189.86,189.82,2.6385]
[1735617116770,3.04,189.86,189.79,1.6086]
[1735617117165,3.04,189.86,189.83,2.6385]
[1735617117674,3.04,189.86,189.81,2.6386]
[1735617118280,3.04,189.86,189.79,1.6086]
[1735617118471,3.04,189.86,189.82,2.6386]
[1735617119668,12.01183375,189.91,189.85,2.6382]
[1735617119872,3.06,189.9,189.85,2.6382]
[1735617120580,5.6975,189.9,189.86,2.6381]
[1735617120780,3.06,189.9,189.81,13.58563375]
[1735617121281,3.06,189.9,189.86,2.638]
[1735617121785,3.06,189.9,189.87,2.6379]
[1735617126380,5.6975,189.9,189.86,2.6381]
[1735617129290,1.5838,189.95,189.84,7.68526946]
[1735617129494,1.5838,189.95,189.88,7.68526946]
[1735617129789,3.06,189.94,189.88,7.68526946]
[1735617130088,9.26906946,189.95,189.81,4.6338]
[1735617130089,3.06,189.95,189.9,7.68526946]
[1735617130495,3.06,189.95,189.92,2.6372]
[1735617130688,3.06,189.95,189.9,7.68526946]
[1735617130888,3.06,189.95,189.88,7.68526946]
[1735617131093,2.637,189.94,189.88,7.68526946]
[1735617131585,5.697,189.94,189.88,7.68526946]
[1735617132391,5.697,189.94,189.9,2.6375]
[1735617134696,7.68526946,189.93,189.88,2.6377]
[1735617135096,7.68526946,189.93,189.84,7.68526946]
[1735617135297,2.6376,189.9,189.84,7.68526946]
[1735617135499,3.06,189.89,189.84,7.68526946]
[1735617136291,3.06,189.89,189.86,2.638]
[1735617136493,3.06,189.92,189.86,7.68526946]
[1735617136998,3.06,189.92,189.87,2.6379]
[1735617138499,2.6375,189.91,189.87,2.6379]
[1735617139496,2.6375,189.9,189.85,2.6381]
[1735617139800,2.6375,189.9,189.84,7.68526946]
[1735617139801,7.68526946,189.91,189.84,7.68526946]
[1735617140101,3.06,189.92,189.84,7.68526946]
[1735617140398,5.6973,189.92,189.87,2.6379]
[1735617144905,3.06,189.92,189.87,2.6379]
[1735617145099,2.6374,189.91,189.87,2.6379]
[1735617145496,10.32296946,189.89,189.82,7.68526946]
[1735617145701,7.68526946,189.87,189.83,4.12289526]
[1735617145907,3.06,189.86,189.8,9.15786946]
[1735617146203,3.06,189.86,189.81,4.12323959]
[1735617146402,7.68526946,189.85,189.78,7.68526946]
[1735617146602,7.68526946,189.85,189.79,4.12599318]
[1735617146800,7.68526946,189.85,189.8,4.12556012]
[1735617147002,7.68526946,189.85,189.78,7.68526946]
[1735617147201,7.68526946,189.85,189.79,4.12502944]
[1735617147401,7.68526946,189.85,189.78,7.68526946]
[1735617147402,10.32346946,189.85,189.8,2.6389]
[1735617148198,2.6384,189.84,189.8,2.6389]
[1735617148600,2.6384,189.84,189.78,10.32436946]
[1735617149000,2.6384,189.84,189.78,7.68526946]
[1735617150300,2.6385,189.83,189.78,7.68526946]
[1735617151402,2.6385,189.83,189.79,4.12790794]
[1735617151403,2.6387,189.82,189.79,4.12790794]
[1735617151609,4.6235,189.88,189.78,7.68526946]
[1735617151610,3.04,189.81,189.78,7.68526946]
[1735617151803,3.04,189.81,189.79,4.12701403]
[1735617152009,3.04,189.81,189.79,2.6389]
[1735617152209,3.04,189.81,189.78,7.68526946]
[1735617152410,3.04,189.81,189.79,4.12665658]
[1735617152608,3.04,189.81,189.79,2.6391]
[1735617153010,7.30966934,189.9,189.84,2.6383]
[1735617153210,3.04,189.89,189.83,7.68526946]
[1735617154209,5.6777,189.89,189.84,2.6383]
[1735617154404,3.04,189.89,189.83,7.68526946]
[1735617154711,7.68526946,189.86,189.81,7.68526946]
[1735617155011,7.68526946,189.87,189.81,7.68526946]
[1735617155212,7.68526946,189.87,189.75,1.4868]
[1735617155410,2.6384,189.84,189.79,7.68526946]
[1735617155610,3.04,189.83,189.79,7.68526946]
[1735617156414,3.04,189.83,189.77,7.68526946]
[1735617156608,3.04,189.83,189.78,4.12608771]
[1735617156812,3.04,189.83,189.79,2.6389]
[1735617159010,3.04,189.83,189.8,2.6389]
[1735617160216,3.04,189.83,189.79,7.68526946]
[1735617160417,3.04,189.83,189.82,2.6386]
[1735617163516,7.68526946,189.87,189.81,7.68526946]
[1735617163711,3.04,189.86,189.84,2.6383]
[1735617164420,3.04,189.86,189.85,2.6382]
[1735617166422,3.04,189.86,189.81,7.68526946]
[1735617166618,3.04,189.86,189.84,2.6383]
[1735617168217,3.04,189.86,189.75,1.4868]
[1735617168525,3.04,189.86,189.83,2.6385]
[1735617172526,3.04,189.86,189.79,7.68526946]
[1735617172725,2.6382,189.85,189.81,2.6388]
[1735617173022,2.6382,189.85,189.79,7.68526946]
[1735617173023,3.04,189.86,189.79,7.68526946]
[1735617173225,3.04,189.86,189.8,4.11949243]
[1735617173520,3.04,189.86,189.79,7.68526946]
[1735617173720,7.68526946,189.87,189.8,4.1196029]
[1735617173925,3.04,189.86,189.79,7.68526946]
[1735617174126,3.04,189.86,189.81,2.6387]
[1735617174320,3.04,189.86,189.79,7.68526946]
[1735617174521,3.04,189.86,189.8,4.11951905]
[1735617174721,3.04,189.86,189.79,7.68526946]
[1735617174927,5.6782,189.86,189.81,2.6387]
[1735617175828,5.6782,189.86,189.82,2.6386]
[1735617179227,3.04,189.86,189.81,7.68526946]
[1735617180431,3.04,189.86,189.83,2.6384]
[1735617181130,3.04,189.86,189.81,7.68526946]
[1735617181329,3.04,189.86,189.84,2.6383]
[1735617185025,3.04,189.86,189.83,2.6385]
[1735617186935,10.32326946,189.87,189.83,2.6385]
[1735617187132,3.02,189.86,189.83,2.6385]
[1735617188335,3.02,189.86,189.84,2.6382]
[1735617189337,3.02,189.86,189.81,7.68526946]
[1735617189540,3.02,189.86,189.83,2.6385]
[1735617189735,3.02,189.86,189.79,7.68526946]
[1735617189935,3.02,189.86,189.8,4.1346205]
[1735617190137,3.02,189.86,189.79,7.68526946]
[1735617190138,3.02,189.86,189.81,4.1346205]
[1735617190338,3.02,189.86,189.82,4.1346205]
[1735617190635,3.02,189.86,189.79,7.68526946]
[1735617190830,3.02,189.86,189.8,4.13605877]
[1735617191037,3.02,189.86,189.81,4.13605877]
[1735617191231,3.02,189.86,189.82,4.13606902]
[1735617191431,2.6383,189.85,189.81,2.6388]
[1735617191632,2.6383,189.85,189.82,4.13617265]
[1735617191828,2.6383,189.85,189.83,4.13617265]
[1735617192132,2.6383,189.85,189.81,2.6388]
[1735617192330,2.6383,189.85,189.82,4.1359523]
[1735617192533,2.6383,189.85,189.83,4.1359523]
[1735617192731,3.02,189.86,189.79,7.68526946]
[1735617192937,3.02,189.86,189.84,2.6383]
[1735617193238,3.02,189.86,189.81,7.68526946]
[1735617193446,3.02,189.86,189.82,4.13548047]
[1735617193645,3.02,189.86,189.83,4.13548047]
[1735617193841,3.02,189.86,189.84,4.13548047]
[1735617194042,3.02,189.86,189.83,2.6385]
[1735617194251,3.02,189.86,189.79,7.68526946]
[1735617194451,3.02,189.86,189.8,4.13586868]
[1735617194650,3.02,189.86,189.81,4.13586868]
[1735617194851,3.02,189.86,189.82,4.13586868]
[1735617195055,7.68526946,189.85,189.77,7.68526946]
[1735617195353,7.68526946,189.85,189.78,4.13692232]
[1735617195553,7.68526946,189.85,189.79,4.13692232]
[1735617195853,7.68526946,189.85,189.8,4.13692232]
[1735617196056,2.6384,189.84,189.81,4.13692232]
[1735617196354,2.6384,189.84,189.8,2.6389]
[1735617196554,2.6384,189.84,189.81,4.13741891]
[1735617196748,2.6384,189.84,189.8,2.6389]
[1735617196948,2.6384,189.84,189.81,4.13729142]
[1735617197154,2.6384,189.84,189.8,2.6389]
[1735617197556,2.6384,189.84,189.81,4.13730495]
[1735617197751,2.6384,189.84,189.8,2.6389]
[1735617197946,2.6384,189.84,189.81,4.13688919]
[1735617198255,2.6384,189.84,189.8,2.6389]
[1735617199251,2.6384,189.84,189.81,4.13604953]
[1735617199553,2.6384,189.84,189.8,2.6389]
[1735617199756,2.6384,189.84,189.81,4.13580817]
[1735617199957,2.6384,189.84,189.8,2.6389]
[1735617200255,2.6384,189.84,189.81,4.13545577]
[1735617200457,2.6384,189.84,189.8,2.6389]
[1735617200754,2.6384,189.84,189.81,4.13536635]
[1735617200956,2.6384,189.84,189.8,2.6389]
[1735617201152,2.6385,189.83,189.8,2.6389]
[1735617202558,2.6388,189.81,189.78,2.6391]
[1735617202855,5.6588,189.81,189.79,4.1371849]
[1735617203054,3.02,189.81,189.78,2.6391]
[1735617203255,3.02,189.81,189.79,4.13793635]
[1735617203457,3.02,189.81,189.78,2.6391]
[1735617203652,3.02,189.81,189.75,9.17206946]
[1735617203653,3.02,189.83,189.8,2.6389]
[1735617203959,7.68526946,189.85,189.79,4.13762381]
[1735617203960,14.9949388,189.85,189.81,4.13695226]
[1735617204259,3.02,189.83,189.82,4.13632734]
[1735617205354,3.02,189.87,189.82,4.13632734]
[1735617205559,3.02,189.87,189.83,11.8215968]
[1735617205756,29.20547421,189.89,189.87,2.6379]
[1735617206354,29.20547421,189.89,189.88,2.6378]
[1735617207054,3.02,189.91,189.89,2.6376]
[1735617207455,14.9949388,189.93,189.89,2.6376]
[1735617207661,10.32966934,189.93,189.89,2.6376]
[1735617208054,3.02,189.93,189.89,2.6376]
[1735617208657,32.22547421,189.95,189.92,2.6372]
[1735617208857,29.20547421,189.95,189.92,2.6372]
[1735617209563,29.20547421,189.95,189.89,7.68526946]
[1735617209860,10.70526946,189.96,189.9,6.76518991]
[1735617210060,10.70526946,189.96,189.89,7.68526946]
[1735617210254,7.30966934,189.97,189.91,7.68526946]
[1735617210454,7.30966934,189.97,189.93,7.68526946]
[1735617210667,10.32966934,189.99,189.94,2.6369]
[1735617210860,10.32966934,189.99,189.93,7.68526946]
[1735617211361,10.32966934,189.99,189.95,2.6367]
[1735617211559,7.68526946,189.98,189.91,7.68526946]
[1735617212061,2.6369,189.95,189.89,7.68526946]
[1735617212365,7.68526946,189.96,189.91,2.6374]
[1735617212864,2.6367,189.97,189.91,7.68526946]
[1735617213165,7.68526946,189.98,189.91,7.68526946]
[1735617213858,7.68526946,189.96,189.89,7.68526946]
[1735617214465,10.32196946,189.96,189.91,2.6372]
[1735617214666,2.6367,189.96,189.91,10.32246946]
[1735617215459,2.6366,189.97,189.92,2.6372]
[1735617215663,7.68526946,189.98,189.91,7.68526946]
[1735617215966,3.02,189.99,189.93,7.68526946]
[1735617216667,3.02,189.99,189.95,2.6368]
[1735617217665,10.32146946,190.0,189.95,2.6368]
[1735617217863,13.34146946,190.0,189.95,2.6368]
[1735617218062,3.02,190.0,189.97,2.6365]
[1735617219160,3.02,190.0,189.98,2.6363]
[1735617221563,3.02,190.0,189.96,2.6366]
[1735617222766,5.6562,190.0,189.95,7.68526946]
[1735617223369,2.6362,190.0,189.95,10.32206946]
[1735617225173,3.02,190.01,189.98,2.6364]
[1735617225871,10.70526946,190.02,189.98,2.6364]
[1735617226371,10.70526946,190.02,189.95,7.68526946]
[1735617226569,62.96371531,190.03,189.91,4.7253]
[1735617226570,8.85756934,190.1,189.97,7.68526946]
[1735617226769,7.68526946,190.05,189.99,7.68526946]
[1735617226971,7.68526946,190.05,190.03,2.6357]
[1735617228273,10.70526946,190.07,190.04,2.6356]
[1735617230067,10.70526946,190.07,189.99,7.68526946]
[1735617230272,10.70526946,190.07,190.03,2.6357]
[1735617231179,13.34046946,190.07,190.03,2.6357]
[1735617234083,10.70526946,190.07,190.05,2.6354]
[1735617234579,10.70526946,190.07,190.01,7.68526946]
[1735617237480,3.02,190.07,190.01,7.68526946]
[1735617238081,3.02,190.07,190.05,2.6354]
[1735617245787,10.70526946,190.07,189.91,4.7253]
[1735617245983,7.68526946,190.02,189.95,7.68526946]
[1735617246180,7.68526946,190.04,190.0,2.636]
[1735617246390,7.68526946,190.04,189.95,7.68526946]
[1735617246588,7.68526946,190.04,189.97,7.68526946]
[1735617247184,3.02,190.07,190.02,2.6357]
[1735617247488,3.02,190.07,190.01,7.68526946]
[1735617248486,3.02,190.07,190.03,2.6356]
[1735617249889,2.635,190.08,190.03,2.6356]
[1735617250491,13.34016946,190.09,190.04,2.6355]
[1735617251691,7.30966934,190.1,190.05,7.68526946]
[1735617251993,29.20547421,190.11,190.05,7.68526946]
[1735617252290,29.20547421,190.11,190.09,2.6349]
[1735617252492,31.84007421,190.11,190.05,7.68526946]
[1735617252683,7.68526946,190.09,190.03,7.68526946]
[1735617253490,3.02,190.11,190.05,2.6353]
[1735617253691,7.68526946,190.1,190.05,2.6353]
[1735617254389,10.32006946,190.1,190.05,2.6353]
[1735617255184,7.68526946,190.1,190.03,7.68526946]
[1735617255788,7.68526946,190.08,190.02,4.6673]
[1735617255989,2.6352,190.07,190.03,4.11813002]
[1735617256198,7.68526946,190.08,190.02,4.6673]
[1735617256392,7.68526946,190.08,190.03,2.6357]
[1735617257691,10.32036946,190.08,190.03,2.6357]
[1735617258197,10.32016946,190.1,190.03,7.68526946]
[1735617258890,10.32016946,190.1,190.05,2.6353]
[1735617259795,2.6349,190.09,190.04,2.6356]
[1735617260293,10.32006946,190.1,190.05,2.6354]
[1735617260994,10.32006946,190.1,190.06,2.6353]
[1735617261590,13.32006946,190.1,190.06,2.6353]
[1735617262295,7.68526946,190.07,189.93,7.288484]
[1735617262498,7.68526946,190.02,189.94,13.41391798]
[1735617262700,7.68526946,190.02,189.95,4.12634852]
[1735617262995,3.0,190.03,189.94,9.28756946]